bitfinex/quotes_BTCUSD_20240906
["timestamp","ask_amount","ask_price","bid_price","bid_amount"]
[1725638365719,0.010815,54204.0,54191.0,0.437]
[1725638366879,0.010815,54204.0,54191.0,0.423]
[1725638367297,0.012815,54204.0,54191.0,0.437]
[1725638367535,0.032815,54204.0,54191.0,0.414]
[1725638367765,0.010815,54204.0,54191.0,0.4]
[1725638368210,0.010815,54204.0,54191.0,0.414]
[1725638368685,0.010815,54204.0,54191.0,0.423]
[1725638368913,0.002,54203.0,54191.0,0.437]
[1725638369132,0.192,54200.0,54191.0,0.437]
[1725638369345,0.3851,54198.0,54191.0,0.437]
[1725638370061,0.000815,54204.0,54191.0,0.437]
[1725638370283,0.000815,54204.0,54191.0,1.04058239]
[1725638370505,0.000815,54204.0,54191.0,1.05458239]
[1725638370721,0.000815,54204.0,54191.0,0.86983]
[1725638370940,0.012815,54204.0,54191.0,0.86983]
[1725638371172,0.3851,54200.0,54191.0,0.46003]
[1725638371394,0.3851,54200.0,54191.0,0.47403]
[1725638371632,0.3851,54200.0,54191.0,0.547996]
[1725638372293,0.5701,54200.0,54191.0,0.533996]
[1725638373473,0.5701,54200.0,54191.0,0.496966]
[1725638373761,0.5701,54200.0,54191.0,0.510966]
[1725638374008,0.424215,54204.0,54191.0,0.510966]
[1725638374230,0.1,54203.0,54191.0,0.496966]
[1725638374446,0.1,54203.0,54191.0,0.547996]
[1725638375155,0.1,54203.0,54191.0,0.533996]
[1725638375373,0.000815,54204.0,54191.0,1.14244839]
[1725638376309,0.382,54201.0,54191.0,0.510966]
[1725638376749,0.1809,54199.0,54191.0,0.510966]
[1725638376973,0.1809,54199.0,54191.0,0.487966]
[1725638377234,0.1809,54199.0,54191.0,0.4]
[1725638377695,0.1809,54199.0,54191.0,0.414]
[1725638378149,0.1809,54199.0,54191.0,0.423]
[1725638378375,0.1809,54199.0,54191.0,0.437]
[1725638378822,0.1809,54199.0,54191.0,0.423]
[1725638379262,0.1809,54199.0,54191.0,0.437]
[1725638380683,0.607615,54192.0,54191.0,0.4]
[1725638380890,0.617615,54192.0,54191.0,0.414]
[1725638381113,1.22529747,54192.0,54191.0,0.414]
[1725638381396,1.22529747,54192.0,54184.0,0.4]
[1725638381632,0.6402,54185.0,54184.0,0.4]
[1725638381874,0.7402,54185.0,54184.0,0.4]
[1725638382320,0.002,54184.0,54183.0,0.4]
[1725638382567,0.112,54184.0,54183.0,0.4]
[1725638382804,0.000816,54220.0,54183.0,0.4]
[1725638383034,0.05410699,54221.0,54183.0,0.4]
[1725638383035,0.46700661,54192.0,54191.0,0.55430836]
[1725638383262,0.46700661,54197.0,54191.0,0.55430836]
[1725638383482,0.02772352,54201.0,54190.0,0.01]
[1725638383730,0.46700661,54197.0,54189.0,0.01]
[1725638383973,0.02772352,54201.0,54183.0,0.4]
[1725638383974,0.46700661,54192.0,54185.0,0.01]
[1725638384204,0.03703,54215.0,54185.0,0.01]
[1725638384205,0.31890521,54190.0,54185.0,0.01]
[1725638384668,0.31890521,54194.0,54185.0,0.01]
[1725638384910,0.1,54193.0,54185.0,0.01]
[1725638385158,0.12772352,54193.0,54185.0,0.01]
[1725638385610,0.1,54193.0,54187.0,0.01]
[1725638385814,0.5806,54192.0,54187.0,0.01]
[1725638386076,0.1,54193.0,54187.0,0.01]
[1725638386077,0.5806,54191.0,54187.0,0.01]
[1725638386767,0.1,54190.0,54187.0,0.01]
[1725638386990,0.31890521,54189.0,54185.0,0.01]
[1725638387242,0.697,54188.0,54185.0,0.01]
[1725638387476,0.697,54188.0,54183.0,0.4]
[1725638387731,0.697,54188.0,54183.0,0.41]
[1725638388173,0.697,54188.0,54187.0,0.004]
[1725638388626,0.697,54188.0,54183.0,0.41]
[1725638389384,0.5695,54184.0,54183.0,0.4]
[1725638389629,0.6695,54184.0,54183.0,0.4]
[1725638390347,0.6695,54184.0,54181.0,0.01]
[1725638390591,0.1,54183.0,54181.0,0.01]
[1725638390793,0.1,54183.0,54182.0,0.01]
[1725638391054,0.1,54183.0,54182.0,0.012]
[1725638391302,0.1,54183.0,54182.0,0.412]
[1725638391822,0.1838,54191.0,54182.0,0.412]
[1725638391823,0.1838,54191.0,54190.0,0.012]
[1725638392490,0.1838,54191.0,54188.0,0.01]
[1725638392738,0.1838,54191.0,54184.0,0.02]
[1725638392739,0.1838,54191.0,54190.0,0.01]
[1725638392949,0.1838,54191.0,54186.0,0.01]
[1725638392950,0.02937523,54190.0,54186.0,0.01]
[1725638393688,0.12937523,54190.0,54186.0,0.01]
[1725638394388,0.12937523,54190.0,54186.0,0.014]
[1725638395604,0.1,54190.0,54186.0,0.014]
[1725638396324,0.1,54190.0,54188.0,0.4]
[1725638396787,0.00708449,54191.0,54188.0,0.4]
[1725638397044,0.4059,54191.0,54188.0,0.38785521]
[1725638397281,0.4059,54191.0,54182.0,0.01]
[1725638397282,0.02937523,54190.0,54184.0,0.4]
[1725638397503,0.02937523,54190.0,54186.0,0.004]
[1725638397735,0.404,54189.0,54186.0,0.004]
[1725638397963,0.404,54189.0,54184.0,0.4]
[1725638398213,0.404,54189.0,54188.0,0.003]
[1725638398677,0.43337523,54189.0,54188.0,0.003]
[1725638398891,0.53337523,54189.0,54188.0,0.003]
[1725638399177,0.53337523,54189.0,54185.0,0.4]
[1725638399178,0.12937523,54189.0,54185.0,0.4]
[1725638399418,0.12937523,54189.0,54183.0,0.001628]
[1725638399419,0.31890521,54186.0,54183.0,0.001628]
[1725638399659,0.4764,54185.0,54183.0,0.001628]
[1725638399874,0.4764,54185.0,54177.0,0.4]
[1725638399875,0.31890521,54179.0,54177.0,0.4]
[1725638400319,0.4764,54178.0,54177.0,0.4]
[1725638401022,0.1,54178.0,54176.0,0.01]
[1725638401272,0.02892903,54179.0,54177.0,0.025]
[1725638401982,0.02892903,54179.0,54178.0,0.01]
[1725638402207,0.1493559,54179.0,54178.0,0.033]
[1725638402418,0.12042687,54179.0,54178.0,0.033]
[1725638403341,0.02042687,54179.0,54178.0,0.033]
[1725638403799,0.1,54182.0,54176.0,0.02]
[1725638404024,0.4124,54181.0,54180.0,0.01]
[1725638404245,0.5124,54181.0,54180.0,0.01]
[1725638404678,0.02011936,54183.0,54182.0,0.03]
[1725638404911,0.05415519,54214.0,54191.0,0.6083]
[1725638405144,0.02038495,54193.0,54191.0,0.6103]
[1725638405375,0.02038495,54193.0,54191.0,0.055]
[1725638405637,0.02038495,54193.0,54191.0,0.032]
[1725638405828,0.03155222,54192.0,54191.0,0.032]
[1725638406057,0.000816,54192.0,54191.0,0.032]
[1725638406300,0.000816,54192.0,54191.0,0.97350521]
[1725638406515,0.000816,54192.0,54191.0,0.455]
[1725638406747,0.000816,54192.0,54191.0,0.432]
[1725638406987,0.000816,54192.0,54191.0,0.407]
[1725638407204,0.03155222,54192.0,54191.0,0.007]
[1725638407445,0.03155222,54192.0,54184.0,0.007]
[1725638407446,0.37431115,54192.0,54184.0,0.007]
[1725638407676,0.5874,54191.0,54184.0,0.007]
[1725638407896,0.1,54190.0,54184.0,0.007]
[1725638408111,0.1,54190.0,54183.0,0.4]
[1725638408349,0.3978,54189.0,54183.0,0.007]
[1725638408545,0.1,54188.0,54183.0,0.007]
[1725638408769,0.3789,54184.0,54178.0,0.4]
[1725638409013,0.21209192,54188.0,54178.0,0.03990546]
[1725638409014,0.69780521,54179.0,54178.0,0.03990546]
[1725638409258,0.97900521,54179.0,54172.0,0.007]
[1725638409472,0.31890521,54174.0,54172.0,0.007]
[1725638409700,0.41890521,54174.0,54173.0,0.008632]
[1725638409923,0.12893102,54174.0,54173.0,0.008632]
[1725638410139,0.1,54174.0,54173.0,0.121172]
[1725638411114,0.46764637,54176.0,54173.0,0.099172]
[1725638411116,0.15586988,54176.0,54173.0,0.119172]
[1725638411341,0.1866,54174.0,54173.0,0.092172]
[1725638411573,0.6988,54174.0,54173.0,0.092172]
[1725638411837,0.69857787,54174.0,54173.0,0.092172]
[1725638412315,0.69857787,54174.0,54173.0,0.099172]
[1725638412537,0.1,54174.0,54173.0,0.121172]
[1725638412800,0.000815,54192.0,54191.0,0.007]
[1725638413271,0.000815,54192.0,54187.0,0.4]
[1725638413272,0.413015,54192.0,54187.0,0.4]
[1725638413513,0.413015,54192.0,54189.0,0.007]
[1725638413733,0.413015,54192.0,54187.0,0.4]
[1725638414220,0.413015,54192.0,54187.0,0.398]
[1725638414442,0.46764637,54188.0,54182.0,0.007]
[1725638414929,0.1839,54187.0,54182.0,0.007]
[1725638415157,0.4047,54187.0,54181.0,0.02]
[1725638415406,0.4047,54187.0,54182.0,0.007]
[1725638415622,0.392,54182.0,54177.0,0.007]
[1725638416086,0.392,54182.0,54176.0,0.4]
[1725638416087,0.46764637,54178.0,54176.0,0.4]
[1725638416314,0.392,54177.0,54174.0,0.007]
[1725638416542,0.1,54176.0,54174.0,0.007]
[1725638417409,0.1,54176.0,54173.0,0.092172]
[1725638418067,0.2838,54176.0,54173.0,0.092172]
[1725638419058,0.2838,54176.0,54173.0,0.103172]
[1725638419292,0.4059,54175.0,54173.0,0.103172]
[1725638419719,0.2914,54174.0,54173.0,0.103172]
[1725638419931,0.6987,54174.0,54173.0,0.103172]
[1725638420153,0.73966229,54174.0,54173.0,0.092172]
[1725638420371,0.8393918,54174.0,54173.0,0.092172]
[1725638421442,0.8393918,54174.0,54173.0,0.093172]
[1725638421655,0.86832909,54174.0,54173.0,0.093172]
[1725638421884,0.86832909,54174.0,54173.0,0.092172]
[1725638422372,0.26989958,54174.0,54157.0,0.001632]
[1725638422617,0.46764637,54160.0,54157.0,0.001632]
[1725638422824,0.3989,54159.0,54157.0,0.001632]
[1725638423036,0.1,54158.0,54157.0,0.001632]
[1725638423251,0.6619,54158.0,54157.0,0.001632]
[1725638423485,0.8491,54158.0,54157.0,0.001632]
[1725638423694,0.98366875,54158.0,54157.0,0.001632]
[1725638423911,0.3827,54147.0,54143.0,0.4]
[1725638424142,0.46764637,54144.0,54143.0,0.4]
[1725638424355,0.0042,54142.0,54129.0,0.01]
[1725638424575,0.46764637,54137.0,54129.0,0.01]
[1725638424798,0.5119,54137.0,54129.0,0.01]
[1725638425254,0.5119,54137.0,54130.0,0.007]
[1725638426192,0.54085179,54137.0,54130.0,0.007]
[1725638426414,0.54085179,54137.0,54134.0,0.007]
[1725638426633,0.12895179,54137.0,54136.0,0.01064]
[1725638426858,0.02895179,54137.0,54136.0,0.00234]
[1725638427097,0.03195179,54137.0,54136.0,0.00234]
[1725638427561,0.02895179,54137.0,54136.0,0.00234]
[1725638428027,0.02995179,54137.0,54136.0,0.00234]
[1725638428474,0.02995179,54137.0,54136.0,0.42624]
[1725638428728,0.1998,54152.0,54136.0,0.42624]
[1725638428962,0.0289495,54148.0,54144.0,0.00234]
[1725638429200,0.0289495,54148.0,54139.0,0.02]
[1725638429201,0.0289495,54148.0,54141.0,0.00234]
[1725638429421,0.0289495,54148.0,54141.0,0.00434]
[1725638429657,0.05182445,54148.0,54136.0,0.00234]
[1725638429882,0.05182445,54148.0,54142.0,0.00234]
[1725638429883,0.0289495,54148.0,54142.0,0.00234]
[1725638430351,0.0289495,54148.0,54139.0,0.02]
[1725638430352,0.00572565,54152.0,54139.0,0.01]
[1725638430586,0.00572565,54152.0,54142.0,0.00234]
[1725638430811,0.7929,54165.0,54146.0,0.002]
[1725638431033,0.7929,54165.0,54148.0,0.00234]
[1725638431298,0.46764637,54174.0,54151.0,0.00234]
[1725638431299,0.4676,54167.0,54151.0,0.00234]
[1725638431525,0.98201101,54174.0,54151.0,0.40234]
[1725638431752,0.4046,54173.0,54159.0,0.002]
[1725638431975,0.17118646,54172.0,54160.0,0.002]
[1725638432224,0.4046,54173.0,54164.0,0.002]
[1725638432495,0.4046,54173.0,54162.0,0.00234]
[1725638432707,0.3881,54169.0,54156.0,0.55664836]
[1725638432920,0.3881,54169.0,54158.0,0.00234]
[1725638433140,0.0575638,54178.0,54162.0,0.5772]
[1725638433141,0.3881,54178.0,54162.0,0.5772]
[1725638433383,0.3881,54178.0,54163.0,0.00234]
[1725638433614,0.46764637,54177.0,54165.0,0.00234]
[1725638433897,0.46764637,54177.0,54166.0,0.002]
[1725638434135,0.009,54174.0,54166.0,0.002]
[1725638434355,0.009,54174.0,54167.0,0.01]
[1725638434614,0.10803803,54179.0,54166.0,0.01434]
[1725638434615,0.10803803,54179.0,54170.0,0.00234]
[1725638434840,0.001,54177.0,54170.0,0.00234]
[1725638435077,0.001,54177.0,54176.0,0.1928]
[1725638435539,0.00072105,54177.0,54176.0,0.1928]
[1725638435979,0.02965117,54177.0,54176.0,0.1928]
[1725638436439,0.03046717,54177.0,54176.0,0.1928]
[1725638436889,0.03046717,54177.0,54176.0,0.19514]
[1725638437111,0.03046717,54177.0,54176.0,0.21714]
[1725638437330,0.03046717,54177.0,54176.0,0.61714]
[1725638437813,0.00153705,54177.0,54176.0,0.61714]
[1725638438273,0.001816,54177.0,54176.0,1.01464]
[1725638438733,0.000816,54177.0,54176.0,1.01464]
[1725638438964,0.001816,54177.0,54176.0,1.01464]
[1725638439634,0.001816,54177.0,54176.0,1.03764]
[1725638440525,0.000816,54177.0,54176.0,0.6028]
[1725638440733,0.001816,54177.0,54176.0,0.61514]
[1725638440948,0.001816,54177.0,54176.0,0.99724]
[1725638441189,0.001816,54177.0,54176.0,0.99924]
[1725638441420,0.000816,54177.0,54176.0,0.99924]
[1725638441734,0.001816,54177.0,54176.0,0.99924]
[1725638441977,0.00279138,54177.0,54176.0,0.99924]
[1725638442201,0.00279138,54177.0,54176.0,0.99724]
[1725638442202,0.00179138,54177.0,54176.0,0.99724]
[1725638443555,0.00179138,54177.0,54176.0,0.99924]
[1725638444022,0.001816,54177.0,54176.0,1.00924]
[1725638444756,0.000816,54177.0,54176.0,0.99924]
[1725638444988,0.0261858,54177.0,54176.0,1.00324]
[1725638445220,0.000816,54177.0,54176.0,1.00324]
[1725638445483,0.000816,54177.0,54176.0,0.99924]
[1725638445484,0.00093062,54177.0,54176.0,0.99924]
[1725638445715,0.00093062,54177.0,54176.0,1.01224]
[1725638445943,0.00193062,54177.0,54176.0,1.01024]
[1725638446183,0.00193062,54177.0,54176.0,0.62814]
[1725638446408,0.00193062,54177.0,54176.0,0.41534]
[1725638446633,0.002906,54177.0,54176.0,0.43534]
[1725638446862,0.002906,54177.0,54176.0,0.413]
[1725638447335,0.001906,54177.0,54176.0,0.4]
[1725638447569,0.002906,54177.0,54176.0,0.01]
[1725638448052,0.001906,54177.0,54174.0,0.00234]
[1725638448271,0.46764637,54175.0,54174.0,0.00234]
[1725638448721,0.56764637,54175.0,54174.0,0.00234]
[1725638449195,0.56873637,54175.0,54174.0,0.00234]
[1725638449933,0.56873637,54175.0,54174.0,0.00434]
[1725638450163,0.56873637,54175.0,54174.0,0.00234]
[1725638450386,0.56873637,54175.0,54174.0,0.40534]
[1725638450639,0.5688601,54175.0,54174.0,0.40534]
[1725638450872,0.5688601,54175.0,54174.0,0.40234]
[1725638451101,0.5698601,54175.0,54174.0,0.408]
[1725638451325,0.5698601,54175.0,54174.0,0.008]
[1725638451774,0.5698601,54175.0,54173.0,0.01]
[1725638451775,0.5688601,54175.0,54173.0,0.01]
[1725638452010,0.1,54174.0,54169.0,0.00234]
[1725638452248,0.31915811,54170.0,54167.0,0.4]
[1725638452477,0.31915811,54170.0,54169.0,0.01]
[1725638452949,0.31915811,54170.0,54169.0,0.01234]
[1725638453205,0.1,54174.0,54173.0,0.00234]
[1725638453446,0.1,54174.0,54173.0,0.02234]
[1725638453681,0.1,54174.0,54173.0,0.42054]
[1725638454154,0.001,54175.0,54174.0,0.012]
[1725638454155,0.31915811,54175.0,54174.0,0.012]
[1725638454614,0.41915811,54175.0,54174.0,0.022]
[1725638454845,0.42037184,54175.0,54174.0,0.022]
[1725638455059,0.42037184,54175.0,54174.0,0.02434]
[1725638455282,0.42037184,54175.0,54174.0,0.42234]
[1725638455511,0.42037184,54175.0,54174.0,0.43234]
[1725638455512,0.42137184,54175.0,54174.0,0.43234]
[1725638456709,0.42037184,54175.0,54174.0,0.42434]
[1725638457194,0.42137184,54175.0,54174.0,0.43234]
[1725638457455,0.10221373,54175.0,54174.0,0.43234]
[1725638457691,0.00121373,54175.0,54174.0,0.42434]
[1725638457917,0.000816,54177.0,54176.0,0.022]
[1725638458149,0.000816,54177.0,54176.0,0.02434]
[1725638458383,0.000816,54177.0,54176.0,0.63164]
[1725638459321,0.000816,54177.0,54176.0,1.03164]
[1725638459552,0.00208645,54177.0,54176.0,1.00864]
[1725638460244,0.00208645,54177.0,54176.0,0.61594]
[1725638461202,0.000816,54177.0,54176.0,0.61594]
[1725638461446,0.001816,54177.0,54176.0,0.62394]
[1725638461665,0.0021134,54177.0,54176.0,0.4]
[1725638462175,0.0031134,54177.0,54176.0,0.418]
[1725638462409,0.001816,54177.0,54176.0,0.43034]
[1725638462662,0.001816,54177.0,54176.0,0.43234]
[1725638462904,0.0031134,54177.0,54176.0,0.43034]
[1725638463143,0.001816,54177.0,54176.0,0.43034]
[1725638463420,0.32097411,54177.0,54176.0,0.43034]
[1725638463627,0.41997411,54177.0,54176.0,0.42234]
[1725638463885,0.101816,54177.0,54176.0,0.43234]
[1725638464379,0.100816,54177.0,54176.0,0.81424]
[1725638464635,0.100816,54177.0,54176.0,1.01804]
[1725638464897,0.000816,54177.0,54176.0,1.01804]
[1725638465167,0.001816,54177.0,54176.0,1.02604]
[1725638465418,0.000815,54187.0,54186.0,0.02434]
[1725638465655,0.4792,54191.0,54187.0,0.5921]
[1725638465895,0.31915811,54212.0,54191.0,0.5743]
[1725638465896,0.4792,54204.0,54191.0,0.5743]
[1725638466128,0.02604188,54197.0,54191.0,0.59664]
[1725638466363,0.02891452,54202.0,54201.0,0.59664]
[1725638467047,0.03022472,54202.0,54201.0,0.61964]
[1725638467525,0.03022472,54202.0,54201.0,0.62054]
[1725638467765,0.03022472,54202.0,54201.0,0.4]
[1725638468909,0.31915811,54197.0,54196.0,0.00234]
[1725638469134,0.41915811,54197.0,54196.0,0.00234]
[1725638469359,0.42046831,54197.0,54196.0,0.00234]
[1725638470328,0.3793,54196.0,54193.0,0.31227718]
[1725638470553,0.4793,54196.0,54193.0,0.31227718]
[1725638470801,0.00131583,54195.0,54193.0,0.31227718]
[1725638471032,0.00131583,54195.0,54193.0,0.2729365]
[1725638471479,0.00131583,54195.0,54188.0,0.4]
[1725638471711,0.31915811,54189.0,54188.0,0.4]
[1725638471941,0.41915811,54189.0,54188.0,0.40234]
[1725638472490,0.42047394,54189.0,54188.0,0.40234]
[1725638472814,0.42047394,54189.0,54188.0,0.40434]
[1725638473035,0.42047394,54189.0,54188.0,0.42434]
[1725638473262,0.44601275,54189.0,54188.0,0.42434]
[1725638473491,0.44601275,54189.0,54188.0,0.4]
[1725638473940,0.44701275,54189.0,54188.0,0.413]
[1725638474404,0.44701275,54189.0,54187.0,0.01]
[1725638474405,0.44601275,54189.0,54187.0,0.01]
[1725638474632,0.1,54188.0,54187.0,0.01]
[1725638474857,0.10131583,54188.0,54187.0,0.01]
[1725638475580,0.1,54188.0,54187.0,0.59904]
[1725638476032,0.05527781,54189.0,54188.0,0.01434]
[1725638476509,0.4031,54207.0,54195.0,0.02234]
[1725638476510,0.00131962,54202.0,54195.0,0.02234]
[1725638476742,0.31915811,54196.0,54195.0,0.02234]
[1725638477439,0.31915811,54196.0,54195.0,0.42234]
[1725638477716,0.42047773,54196.0,54195.0,0.42234]
[1725638478178,0.42047773,54196.0,54195.0,0.42834]
[1725638478636,0.41915811,54196.0,54195.0,0.42834]
[1725638479121,0.1,54196.0,54195.0,0.62564]
[1725638479366,0.02892095,54201.0,54200.0,0.02234]
[1725638479603,0.00131962,54204.0,54203.0,0.02]
[1725638479837,0.4038,54200.0,54196.0,0.01]
[1725638480069,0.31915811,54196.0,54195.0,0.40834]
[1725638480315,0.31915811,54196.0,54195.0,0.02234]
[1725638480536,0.4038,54206.0,54197.0,0.01]
[1725638480770,0.31915811,54196.0,54195.0,0.006]
[1725638480996,0.31915811,54196.0,54192.0,0.4]
[1725638480997,0.71375811,54196.0,54194.0,0.01]
[1725638481236,0.71375811,54196.0,54191.0,0.01234]
[1725638481237,0.1,54195.0,54193.0,0.01]
[1725638481464,0.1,54195.0,54194.0,0.01]
[1725638481465,0.1013211,54195.0,54194.0,0.01]
[1725638481693,0.1,54195.0,54194.0,0.60824]
[1725638482164,0.02583091,54206.0,54205.0,0.63464]
[1725638482383,0.31915811,54210.0,54205.0,0.63464]
[1725638482610,0.31915811,54210.0,54206.0,0.02]
[1725638482902,0.32047921,54210.0,54208.0,0.02]
[1725638483129,0.0013211,54209.0,54208.0,0.02]
[1725638484056,0.0013211,54209.0,54208.0,0.03634]
[1725638484294,0.03023376,54209.0,54208.0,0.03634]
[1725638484742,0.13023376,54209.0,54208.0,0.02234]
[1725638485446,0.13023376,54209.0,54208.0,0.42434]
[1725638485682,0.02891266,54209.0,54208.0,1.03164]
[1725638485906,0.02891266,54209.0,54208.0,0.63644]
[1725638486870,0.07931259,54214.0,54211.0,0.00234]
[1725638487100,0.51457811,54243.0,54216.0,0.41754]
[1725638487101,0.31915811,54223.0,54216.0,0.41754]
[1725638487339,0.31915811,54219.0,54216.0,0.01]
[1725638487579,0.55333,54217.0,54216.0,0.012]
[1725638487814,1.022217,54217.0,54216.0,0.012]
[1725638488112,2.128878,54217.0,54216.0,0.01]
[1725638488357,0.553413,54209.0,54208.0,0.014]
[1725638488587,0.553413,54209.0,54206.0,0.00234]
[1725638488588,1.291346,54207.0,54206.0,0.00234]
[1725638488812,2.029258,54207.0,54206.0,0.00234]
[1725638489047,2.15817187,54207.0,54206.0,0.00234]
[1725638489283,2.52712787,54207.0,54206.0,0.00234]
[1725638490206,2.398253,54206.0,54205.0,0.00234]
[1725638490445,0.3787,54205.0,54200.0,0.3631]
[1725638490702,0.3787,54205.0,54200.0,0.2155]
[1725638490703,2.71763211,54201.0,54200.0,0.2155]
[1725638491208,2.81763211,54201.0,54200.0,0.2155]
[1725638491434,2.81763211,54201.0,54196.0,0.1877]
[1725638491435,2.398519,54200.0,54199.0,0.4]
[1725638491671,2.498519,54200.0,54199.0,0.4]
[1725638491927,2.498519,54200.0,54199.0,0.289297]
[1725638492151,2.886319,54200.0,54199.0,0.16391337]
[1725638492393,2.02978,54193.0,54192.0,0.00234]
[1725638492629,2.12978,54193.0,54192.0,0.00234]
[1725638492877,0.184535,54190.0,54189.0,0.00234]
[1725638493115,0.922695,54189.0,54188.0,0.00234]
[1725638493343,1.391773,54189.0,54188.0,0.00434]
[1725638493567,1.391773,54189.0,54188.0,0.41694]
[1725638493793,0.922695,54189.0,54188.0,0.60494]
[1725638494049,0.538156,54189.0,54188.0,0.60494]
[1725638494270,0.169078,54189.0,54188.0,0.62794]
[1725638494565,0.169078,54189.0,54188.0,1.02794]
[1725638494805,0.368996,54201.0,54200.0,0.60214]
[1725638495067,1.291486,54201.0,54200.0,0.60214]
[1725638495301,1.291486,54201.0,54200.0,0.62514]
[1725638496228,1.391486,54201.0,54200.0,0.62514]
[1725638496481,1.391486,54201.0,54200.0,1.02514]
[1725638496976,0.553494,54201.0,54200.0,1.03914]
[1725638497204,1.291486,54201.0,54200.0,1.03914]
[1725638497428,1.291486,54201.0,54200.0,1.00214]
[1725638497897,1.660482,54201.0,54200.0,1.01614]
[1725638498398,1.660482,54201.0,54200.0,1.00214]
[1725638498659,1.660482,54201.0,54200.0,1.01614]
[1725638499135,1.291486,54201.0,54200.0,1.01614]
[1725638500052,1.291486,54201.0,54200.0,1.00214]
[1725638500299,1.291486,54201.0,54200.0,1.01614]
[1725638500521,0.553494,54201.0,54200.0,1.01614]
[1725638500749,0.923305,54201.0,54200.0,1.02514]
[1725638500995,0.554309,54201.0,54200.0,1.04635963]
[1725638501221,0.5540869,54201.0,54200.0,1.03914]
[1725638501445,0.9230829,54201.0,54200.0,1.03914]
[1725638501679,1.2920789,54201.0,54200.0,1.00214]
[1725638502280,1.2920789,54201.0,54200.0,1.01614]
[1725638502636,1.2920789,54201.0,54200.0,1.01814]
[1725638503133,0.9230829,54201.0,54200.0,1.04114]
[1725638503381,0.9230829,54201.0,54200.0,1.02714]
[1725638503836,0.185313,54201.0,54200.0,1.04114]
[1725638504057,0.02891116,54216.0,54200.0,1.04114]
[1725638504058,0.55329,54221.0,54220.0,0.00234]
[1725638504294,0.92215,54221.0,54220.0,0.00234]
[1725638504520,1.31818622,54221.0,54220.0,0.00234]
[1725638504752,1.291034,54220.0,54219.0,0.18524]
[1725638505259,0.8630789,54221.0,54211.0,0.3955]
[1725638505483,0.922305,54212.0,54211.0,0.3955]
[1725638505714,0.922305,54212.0,54211.0,0.4185]
[1725638505994,0.184461,54212.0,54211.0,0.4185]
[1725638506240,0.02717022,54221.0,54211.0,0.4185]
[1725638506241,0.368908,54214.0,54211.0,0.4185]
[1725638506474,0.184461,54212.0,54211.0,0.8185]
[1725638506700,0.368886,54218.0,54214.0,0.3783]
[1725638506952,0.922252,54215.0,54214.0,0.3783]
[1725638507163,0.553351,54215.0,54214.0,0.4013]
[1725638507413,0.18445,54215.0,54214.0,0.43833]
[1725638507649,0.02705659,54225.0,54215.0,0.44953]
[1725638507878,0.18444,54218.0,54217.0,0.385]
[1725638508137,0.184416,54225.0,54224.0,0.1874]
[1725638508388,0.553249,54225.0,54224.0,0.1874]
[1725638508695,0.00082,54232.0,54224.0,0.1874]
[1725638508696,0.184412,54227.0,54224.0,0.5954]
[1725638508927,0.00082,54232.0,54224.0,0.5954]
[1725638508928,0.368793,54231.0,54226.0,0.385]
[1725638509178,0.184406,54228.0,54227.0,0.2104]
[1725638509392,0.553219,54228.0,54227.0,0.1874]
[1725638509626,0.553219,54228.0,54227.0,0.2104]
[1725638509881,0.922032,54228.0,54227.0,0.5665]
[1725638510388,0.922032,54228.0,54227.0,0.9665]
[1725638511075,0.922032,54228.0,54227.0,0.9895]
[1725638511309,0.553219,54228.0,54227.0,1.0035]
[1725638511556,0.922032,54228.0,54227.0,0.9805]
[1725638511796,0.85443006,54228.0,54227.0,0.9665]
[1725638512040,0.85443006,54228.0,54227.0,1.0035]
[1725638512266,0.48561706,54228.0,54227.0,1.0035]
[1725638512500,0.184406,54228.0,54227.0,1.0035]
[1725638512748,0.553219,54228.0,54227.0,1.0035]
[1725638512982,0.368799,54230.0,54228.0,0.4094]
[1725638513219,0.553209,54229.0,54228.0,0.4094]
[1725638513472,0.553209,54229.0,54228.0,0.4324]
[1725638514236,0.922015,54229.0,54228.0,0.4324]
[1725638514471,0.922015,54229.0,54228.0,0.8324]
[1725638514707,0.553209,54229.0,54228.0,0.8464]
[1725638515164,0.553209,54229.0,54228.0,0.8324]
[1725638515390,0.553209,54229.0,54228.0,0.8464]
[1725638515391,0.922015,54229.0,54228.0,0.8464]
[1725638515629,1.290821,54229.0,54228.0,0.8464]
[1725638515860,1.290821,54229.0,54228.0,0.414]
[1725638516835,1.659627,54229.0,54228.0,0.4]
[1725638517074,1.659627,54229.0,54228.0,0.414]
[1725638517075,1.290821,54229.0,54228.0,0.414]
[1725638517608,1.290821,54229.0,54228.0,0.4]
[1725638518041,1.290821,54229.0,54228.0,0.7917]
[1725638518521,1.290821,54229.0,54228.0,0.7777]
[1725638518748,1.290821,54229.0,54228.0,0.4]
[1725638518977,1.290821,54229.0,54228.0,0.414]
[1725638520347,1.659627,54229.0,54228.0,0.414]
[1725638520577,1.759627,54229.0,54228.0,0.414]
[1725638520840,1.759627,54229.0,54228.0,0.4]
[1725638521345,1.390821,54229.0,54228.0,0.414]
[1725638521579,0.922015,54229.0,54228.0,1.0026]
[1725638521807,0.922015,54229.0,54228.0,0.9886]
[1725638522041,0.922015,54229.0,54228.0,1.0006]
[1725638522300,0.922015,54229.0,54228.0,1.0236]